fUST/lending_fUST_20260525
["ID","MTS","AMOUNT","RATE_DAILY","PERIOD"]
[422938622,1779657038000,-500.0,8.493e-05,2]
[422938612,1779657038000,-221.65,8.493e-05,2]
[422938616,1779657038000,-449.62,8.493e-05,2]
[422938617,1779657038000,-500.0,8.493e-05,2]
[422938615,1779657038000,-281.61,8.493e-05,2]
[422938618,1779657038000,-355.96,8.493e-05,2]
[422938614,1779657038000,-253.95,8.493e-05,2]
[422938613,1779657038000,-202.9,8.493e-05,2]
[422938624,1779657038000,-500.0,8.493e-05,2]
[422938626,1779657038000,-500.0,8.493e-05,2]
[422938623,1779657038000,-500.0,8.493e-05,2]
[422938625,1779657038000,-500.0,8.493e-05,2]
[422938575,1779657038000,-500.0,8.219e-05,2]
[422938605,1779657038000,-585.54,8.493e-05,2]
[422938608,1779657038000,-500.0,8.493e-05,2]
[422938619,1779657038000,-281.68,8.493e-05,2]
[422938604,1779657038000,-430.3,8.493e-05,2]
[422938572,1779657038000,-542.93,8.219e-05,2]
[422938603,1779657038000,-181.03,8.493e-05,2]
[422938573,1779657038000,-500.0,8.219e-05,2]
[422938583,1779657038000,-339.97,8.493e-05,2]
[422938580,1779657038000,-515.17,8.219e-05,2]
[422938579,1779657038000,-500.0,8.219e-05,2]
[422938582,1779657038000,-372.48,8.219e-05,2]
[422938581,1779657038000,-500.0,8.219e-05,2]
[422938576,1779657038000,-500.0,8.219e-05,2]
[422938578,1779657038000,-500.0,8.219e-05,2]
[422938584,1779657038000,-240.5,8.493e-05,2]
[422938586,1779657038000,-648.79,8.493e-05,2]
[422938595,1779657038000,-500.0,8.493e-05,2]
[422938577,1779657038000,-504.33,8.219e-05,2]
[422938590,1779657038000,-267.39,8.493e-05,2]
[422938593,1779657038000,-277.31,8.493e-05,2]
[422938589,1779657038000,-500.0,8.493e-05,2]
[422938592,1779657038000,-261.1,8.493e-05,2]
[422938598,1779657038000,-500.0,8.493e-05,2]
[422938588,1779657038000,-174.34,8.493e-05,2]
[422938596,1779657038000,-500.0,8.493e-05,2]
[422938594,1779657038000,-500.0,8.493e-05,2]
[422938587,1779657038000,-300.35,8.493e-05,2]
[422938591,1779657038000,-387.15,8.493e-05,2]
[422938585,1779657038000,-238.63,8.493e-05,2]
[422938664,1779657039000,-500.0,8.493e-05,2]
[422938652,1779657039000,-500.0,8.493e-05,2]
[422938669,1779657039000,-500.0,8.493e-05,2]
[422938668,1779657039000,-500.0,8.493e-05,2]
[422938672,1779657039000,-408.25,8.493e-05,2]
[422938662,1779657039000,-500.0,8.493e-05,2]
[422938654,1779657039000,-500.0,8.493e-05,2]
[422938661,1779657039000,-244.85,8.493e-05,2]
[422938673,1779657039000,-165.69,8.493e-05,2]
[422938649,1779657039000,-500.0,8.493e-05,2]
[422938666,1779657039000,-184.26,8.493e-05,2]
[422938663,1779657039000,-500.0,8.493e-05,2]
[422938667,1779657039000,-521.82,8.493e-05,2]
[422938682,1779657039000,-500.0,8.767e-05,2]
[422938665,1779657039000,-372.32,8.493e-05,2]
[422938670,1779657039000,-500.0,8.493e-05,2]
[422938685,1779657039000,-328.25,8.767e-05,2]
[422938675,1779657039000,-491.31,8.767e-05,2]
[422938686,1779657039000,-375.81,8.767e-05,2]
[422938681,1779657039000,-244.98,8.767e-05,2]
[422938679,1779657039000,-500.0,8.767e-05,2]
[422938678,1779657039000,-500.0,8.767e-05,2]
[422938677,1779657039000,-357.53,8.767e-05,2]
[422938676,1779657039000,-280.3,8.767e-05,2]
[422938674,1779657039000,-500.0,8.493e-05,2]
[422938659,1779657039000,-500.0,8.493e-05,2]
[422938684,1779657039000,-323.67,8.767e-05,2]
[422938671,1779657039000,-500.0,8.493e-05,2]
[422938651,1779657039000,-500.0,8.493e-05,2]
[422938627,1779657039000,-502.46,8.493e-05,2]
[422938653,1779657039000,-500.0,8.493e-05,2]
[422938687,1779657039000,-607.39,8.767e-05,2]
[422938634,1779657039000,-500.0,8.493e-05,2]
[422938628,1779657039000,-500.0,8.493e-05,2]
[422938629,1779657039000,-290.79493899,8.493e-05,2]
[422938630,1779657039000,-523.74,8.493e-05,2]
[422938632,1779657039000,-500.0,8.493e-05,2]
[422938633,1779657039000,-500.0,8.493e-05,2]
[422938631,1779657039000,-500.0,8.493e-05,2]
[422938636,1779657039000,-500.0,8.493e-05,2]
[422938642,1779657039000,-500.0,8.493e-05,2]
[422938645,1779657039000,-500.0,8.493e-05,2]
[422938635,1779657039000,-500.0,8.493e-05,2]
[422938644,1779657039000,-500.0,8.493e-05,2]
[422938647,1779657039000,-500.0,8.493e-05,2]
[422938643,1779657039000,-500.0,8.493e-05,2]
[422938646,1779657039000,-500.0,8.493e-05,2]
[422938638,1779657039000,-500.0,8.493e-05,2]
[422938641,1779657039000,-500.0,8.493e-05,2]
[422938637,1779657039000,-500.0,8.493e-05,2]
[422938640,1779657039000,-629.51686188,8.493e-05,2]
[422938639,1779657039000,-500.0,8.493e-05,2]
[422938655,1779657039000,-500.0,8.493e-05,2]
[422938660,1779657039000,-500.0,8.493e-05,2]
[422938656,1779657039000,-500.0,8.493e-05,2]
[422938650,1779657039000,-500.0,8.493e-05,2]
[422938648,1779657039000,-500.0,8.493e-05,2]
[422938658,1779657039000,-532.3,8.493e-05,2]
[422938657,1779657039000,-568.47,8.493e-05,2]
[422938680,1779657039000,-372.56,8.767e-05,2]
[422938738,1779657039000,-160.0,0.00014745,2]
[422938692,1779657039000,-218.3,8.767e-05,2]
[422938731,1779657039000,-183.0,0.00012,3]
[422938723,1779657039000,-345.27,0.0001041,2]
[422938720,1779657039000,-500.0,9.863e-05,2]
[422938727,1779657039000,-250.0,0.00010859,2]
[422938721,1779657039000,-500.0,0.00010136,2]
[422938724,1779657039000,-500.0,0.0001041,2]
[422938728,1779657039000,-639.84729753,0.00010958,2]
[422938726,1779657039000,-500.0,0.00010684,2]
[422938725,1779657039000,-188.819796,0.00010567,2]
[422938683,1779657039000,-500.0,8.767e-05,2]
[422938732,1779657039000,-2974.5,0.00012876,2]
[422938730,1779657039000,-204.0,0.00011803,2]
[422938729,1779657039000,-174.44865968,0.00010959,7]
[422938736,1779657039000,-160.0,0.00014745,2]
[422938739,1779657039000,-258.0,0.00015803,2]
[422938745,1779657039000,-500.0,0.00016952,2]
[422938737,1779657039000,-161.73758927,0.00014745,2]
[422938733,1779657039000,-1000.0,0.00013699,2]
[422938741,1779657039000,-185.0,0.00016378,2]
[422938734,1779657039000,-231.0,0.00013803,2]
[422938744,1779657039000,-500.0,0.00016952,2]
[422938742,1779657039000,-443.0,0.00016378,2]
[422938735,1779657039000,-160.0,0.00014742,2]
[422938743,1779657039000,-200.0,0.00016438,2]
[422938740,1779657039000,-195.859,0.00016332,2]
[422938747,1779657039000,-285.0,0.00017803,2]
[422938746,1779657039000,-509.61783015,0.00016952,2]
[422938718,1779657039000,-177.0,9.803e-05,2]
[422938719,1779657039000,-500.0,9.863e-05,2]
[422938722,1779657039000,-500.0,0.00010136,2]
[422938714,1779657039000,-500.0,9.315e-05,2]
[422938691,1779657039000,-299.38,8.767e-05,2]
[422938695,1779657039000,-188.81,8.767e-05,2]
[422938699,1779657039000,-558.16,9.041e-05,2]
[422938715,1779657039000,-500.0,9.589e-05,2]
[422938689,1779657039000,-439.72,8.767e-05,2]
[422938690,1779657039000,-500.0,8.767e-05,2]
[422938694,1779657039000,-500.0,8.767e-05,2]
[422938693,1779657039000,-500.0,8.767e-05,2]
[422938698,1779657039000,-500.0,8.767e-05,2]
[422938697,1779657039000,-500.0,8.767e-05,2]
[422938696,1779657039000,-500.0,8.767e-05,2]
[422938700,1779657039000,-500.0,9.041e-05,2]
[422938701,1779657039000,-476.02,9.041e-05,2]
[422938688,1779657039000,-500.0,8.767e-05,2]
[422938706,1779657039000,-500.0,9.041e-05,2]
[422938703,1779657039000,-500.0,9.041e-05,2]
[422938716,1779657039000,-172.52,9.589e-05,2]
[422938709,1779657039000,-389.4,9.041e-05,2]
[422938711,1779657039000,-555.65,9.315e-05,2]
[422938717,1779657039000,-500.0,9.589e-05,2]
[422938708,1779657039000,-225.08,9.041e-05,2]
[422938710,1779657039000,-500.0,9.315e-05,2]
[422938707,1779657039000,-500.0,9.041e-05,2]
[422938712,1779657039000,-500.0,9.315e-05,2]
[422938713,1779657039000,-171.64,9.315e-05,2]
[422938705,1779657039000,-519.26,9.041e-05,2]
[422938704,1779657039000,-192.62,9.041e-05,2]
[422938702,1779657039000,-500.0,9.041e-05,2]
[422938771,1779657040000,-1000.0,0.0001982,5]
[422938769,1779657040000,-154.22,0.00019813,2]
[422938763,1779657040000,-172.692459,0.00019789,2]
[422938772,1779657040000,-161.42,0.00019822,2]
[422938767,1779657040000,-1000.0,0.000198,5]
[422938760,1779657040000,-151.0,0.00019789,2]
[422938761,1779657040000,-151.0,0.00019789,2]
[422938766,1779657040000,-160.26,0.00019795,2]
[422938768,1779657040000,-312.0,0.00019803,2]
[422938759,1779657040000,-1000.0,0.0001978,5]
[422938753,1779657040000,-887.51,0.00019178,2]
[422938752,1779657040000,-156.0,0.00019123,3]
[422938751,1779657040000,-887.51,0.00018904,2]
[422938756,1779657040000,-887.51,0.00019452,2]
[422938757,1779657040000,-887.51,0.00019726,2]
[422938755,1779657040000,-185.0,0.00019378,2]
[422938754,1779657040000,-1523.2835097,0.00019221,2]
[422938750,1779657040000,-500.0,0.00018682,5]
[422938749,1779657040000,-887.51,0.0001863,2]
[422938748,1779657040000,-207.37338873,0.00018,2]
[422938762,1779657040000,-151.0,0.00019789,2]
[422938758,1779657040000,-1548.259683,0.0001976,5]
[422938764,1779657040000,-156.0,0.00019789,120]
[422938795,1779657040000,-500.0,8.219e-05,2]
[422938789,1779657040000,-161.45,0.00019914,2]
[422938801,1779657040000,-20497.47372425,0.00019917,30]
[422938798,1779657040000,-500.0,9.041e-05,2]
[422938796,1779657040000,-500.0,8.493e-05,2]
[422938797,1779657040000,-500.0,8.767e-05,2]
[422938799,1779657040000,-500.0,9.315e-05,2]
[422938800,1779657040000,-500.0,9.589e-05,2]
[422938787,1779657040000,-157.56700493,0.00019907,2]
[422938786,1779657040000,-1000.0,0.000199,5]
[422938778,1779657040000,-1000.0,0.0001986,5]
[422938774,1779657040000,-150.79,0.0001984,2]
[422938780,1779657040000,-154.22,0.00019863,2]
[422938776,1779657040000,-160.27,0.00019845,2]
[422938777,1779657040000,-157.56,0.00019857,2]
[422938775,1779657040000,-1000.0,0.0001984,5]
[422938779,1779657040000,-161.42,0.00019861,2]
[422938788,1779657040000,-154.22,0.00019913,2]
[422938782,1779657040000,-160.19613023,0.0001988,5]
[422938785,1779657040000,-156.0,0.00019895,30]
[422938790,1779657040000,-1724782.96121375,0.00019917,30]
[422938781,1779657040000,-839.80386977,0.0001988,5]
[422938784,1779657040000,-156.0,0.00019891,2]
[422938783,1779657040000,-150.79,0.0001989,2]
[422938765,1779657040000,-829.68329489,0.00019792,120]
[422938813,1779657043000,-358162.9110009,0.00019917,30]
[422938812,1779657043000,-364.97,9.863e-05,2]
[422938816,1779657044000,-77.41845814,0.00019917,30]
[422938823,1779657399000,-300.0,8.214e-05,2]
[422938824,1779657452000,-500.0,8.214e-05,2]
[422938825,1779657505000,-500.0,8.214e-05,2]
[422938826,1779657559000,-168.71200489,8.213e-05,2]
[422938827,1779657612000,-300.0,8.212e-05,2]
[422938829,1779657666000,-300.0,8.212e-05,2]
[422938830,1779657719000,-300.0,8.212e-05,2]
[422938831,1779657772000,-500.0,7.6e-05,2]
[422938832,1779657791000,-72.05127694,7.6e-05,2]
[422938833,1779657844000,-168.71200489,8.211e-05,2]
[422938835,1779658025000,-525.71979837,8.209e-05,2]
[422938836,1779658041000,-233.4599991,8.209e-05,2]
[422938838,1779658154000,-497.94,8.209e-05,2]
[422938837,1779658154000,-440.82020253,8.209e-05,2]
[422938839,1779658154000,-500.0,8.209e-05,2]
[422938841,1779658154000,-500.0,8.209e-05,2]
[422938842,1779658154000,-567.61150945,8.209e-05,2]
[422938840,1779658154000,-445.52875793,8.209e-05,2]
[422938845,1779658154000,-500.0,8.209e-05,2]
[422938848,1779658154000,-180.38323206,8.209e-05,2]
[422938847,1779658154000,-500.0,8.209e-05,2]
[422938844,1779658154000,-500.0,8.209e-05,2]
[422938846,1779658154000,-500.0,8.209e-05,2]
[422938843,1779658154000,-500.0,8.209e-05,2]
[422938932,1779658237000,-500.0,8.208e-05,2]
[422938936,1779658237000,-500.0,8.208e-05,2]
[422938931,1779658237000,-500.0,8.208e-05,2]
[422938929,1779658237000,-500.0,8.208e-05,2]
[422938930,1779658237000,-500.0,8.208e-05,2]
[422938925,1779658237000,-500.0,8.208e-05,2]
[422938927,1779658237000,-500.0,8.208e-05,2]
[422938926,1779658237000,-500.0,8.208e-05,2]
[422938924,1779658237000,-409.73288133,8.208e-05,2]
[422938940,1779658237000,-500.0,8.208e-05,2]
[422938928,1779658237000,-500.0,8.208e-05,2]
[422938938,1779658237000,-613.51317122,8.208e-05,2]
[422938948,1779658237000,-269.36776729,8.208e-05,2]
[422938939,1779658237000,-500.0,8.208e-05,2]
[422938944,1779658237000,-237.86318866,8.208e-05,2]
[422938943,1779658237000,-262.13681134,8.208e-05,2]
[422938941,1779658237000,-500.0,8.208e-05,2]
[422938934,1779658237000,-500.0,8.208e-05,2]
[422938942,1779658237000,-500.0,8.208e-05,2]
[422938937,1779658237000,-500.0,8.208e-05,2]
[422938935,1779658237000,-500.0,8.208e-05,2]
[422938946,1779658237000,-339.39600002,8.208e-05,2]
[422938945,1779658237000,-98.23343355,8.208e-05,2]
[422938947,1779658237000,-62.37056643,8.208e-05,2]
[422938933,1779658237000,-500.0,8.208e-05,2]
[422939018,1779658238000,-500.0,8.208e-05,2]
[422939027,1779658238000,-500.0,8.208e-05,2]
[422939029,1779658238000,-500.0,8.208e-05,2]
[422939025,1779658238000,-332.11073508,8.208e-05,2]
[422939037,1779658238000,-150.0,8.21e-05,2]
[422939033,1779658238000,-500.0,8.208e-05,2]
[422939035,1779658238000,-500.0,8.209e-05,2]
[422939048,1779658238000,-500.0,8.219e-05,2]
[422939020,1779658238000,-500.0,8.208e-05,2]
[422939050,1779658238000,-539.44,8.219e-05,2]
[422939031,1779658238000,-500.0,8.208e-05,2]
[422939016,1779658238000,-500.0,8.208e-05,2]
[422939001,1779658238000,-306.19027899,8.208e-05,2]
[422939014,1779658238000,-500.0,8.208e-05,2]
[422939010,1779658238000,-500.0,8.208e-05,2]
[422939008,1779658238000,-500.0,8.208e-05,2]
[422939006,1779658238000,-500.0,8.208e-05,2]
[422938994,1779658238000,-500.0,8.208e-05,2]
[422939004,1779658238000,-500.0,8.208e-05,2]
[422939003,1779658238000,-500.0,8.208e-05,2]
[422938998,1779658238000,-193.80972101,8.208e-05,2]
[422938990,1779658238000,-408.70963828,8.208e-05,2]
[422938992,1779658238000,-91.29036172,8.208e-05,2]
[422938996,1779658238000,-500.0,8.208e-05,2]
[422938988,1779658238000,-230.63223271,8.208e-05,2]
[422939054,1779658238000,-500.0,8.219e-05,2]
[422939012,1779658238000,-500.0,8.208e-05,2]
[422939052,1779658238000,-500.0,8.219e-05,2]
[422939022,1779658238000,-167.88926492,8.208e-05,2]
[422939056,1779658238000,-500.0,8.219e-05,2]
[422939094,1779658238000,-178.93140071,8.219e-05,2]
[422939107,1779658238000,-88.69749811,8.493e-05,2]
[422939105,1779658238000,-235.13414493,8.493e-05,2]
[422939098,1779658238000,-579.70479387,8.219e-05,2]
[422939096,1779658238000,-406.47,8.219e-05,2]
[422939092,1779658238000,-321.06859929,8.219e-05,2]
[422939090,1779658238000,-500.0,8.219e-05,2]
[422939102,1779658238000,-411.85585507,8.493e-05,2]
[422939100,1779658238000,-306.87,8.493e-05,2]
[422939089,1779658238000,-438.90942506,8.219e-05,2]
[422939086,1779658238000,-500.0,8.219e-05,2]
[422939088,1779658238000,-61.09057494,8.219e-05,2]
[422939082,1779658238000,-500.0,8.219e-05,2]
[422939041,1779658238000,-383.12180129,8.219e-05,2]
[422939072,1779658238000,-433.22218445,8.219e-05,2]
[422939084,1779658238000,-500.0,8.219e-05,2]
[422939039,1779658238000,-500.0,8.219e-05,2]
[422939046,1779658238000,-500.0,8.219e-05,2]
[422939058,1779658238000,-500.0,8.219e-05,2]
[422939060,1779658238000,-500.0,8.219e-05,2]
[422939062,1779658238000,-500.0,8.219e-05,2]
[422939044,1779658238000,-116.87819871,8.219e-05,2]
[422939078,1779658238000,-500.0,8.219e-05,2]
[422939074,1779658238000,-419.26158938,8.219e-05,2]
[422939070,1779658238000,-500.0,8.219e-05,2]
[422939080,1779658238000,-500.0,8.219e-05,2]
[422939068,1779658238000,-500.0,8.219e-05,2]
[422939076,1779658238000,-80.73841062,8.219e-05,2]
[422939369,1779658240000,-500.0,8.493e-05,2]
[422939367,1779658240000,-492.2,8.493e-05,2]
[422939361,1779658240000,-345.52,8.493e-05,2]
[422939365,1779658240000,-154.56,8.493e-05,2]
[422939372,1779658240000,-500.0,8.767e-05,2]
[422939359,1779658240000,-260.13,8.493e-05,2]
[422939378,1779658240000,-500.0,9.041e-05,2]
[422939382,1779658240000,-177.0,0.0001021,2]
[422939357,1779658240000,-269.10250189,8.493e-05,2]
[422939371,1779658240000,-500.0,8.767e-05,2]
[422939363,1779658240000,-500.0,8.493e-05,2]
[422939376,1779658240000,-276.24,9.041e-05,2]
[422939384,1779658240000,-348.89731935,0.00010959,7]
[422939380,1779658240000,-287.28,9.315e-05,2]
[422939374,1779658240000,-209.399999,9e-05,2]
[422939402,1779658240000,-14247.69218758,0.00015981,2]
[422939400,1779658240000,-160.0,0.00014766,2]
[422939390,1779658240000,-1000.0,0.00013699,2]
[422939407,1779658240000,-363.632055,0.00015981,2]
[422939394,1779658240000,-161.73758927,0.00014766,2]
[422939392,1779658240000,-231.0,0.0001421,2]
[422939388,1779658240000,-1794.6015099,0.00013385,2]
[422939386,1779658240000,-204.0,0.0001221,2]
[422939398,1779658240000,-160.0,0.00014766,2]
[422939396,1779658240000,-160.0,0.00014766,2]
[422939783,1779658243000,-19329.86568377,0.00015979,2]
[422939785,1779658243000,-1422.56325141,0.00015979,2]
[422940062,1779658246000,-1257.029997,0.00015981,2]
[422940060,1779658246000,-16038.57106482,0.00015979,2]
[422940061,1779658246000,-14177.94592558,0.00015981,2]
[422940063,1779658254000,151.0,7.962e-05,2]
[422940064,1779658289000,-349.0,8.208e-05,2]
[422940065,1779658299000,-151.0,8.208e-05,2]
[422940066,1779658332000,-151.0,7.962e-05,2]
[422940067,1779658343000,-300.0,8.207e-05,2]
[422940068,1779658397000,-151.0,7.961e-05,2]
[422940069,1779658450000,-500.0,8.218e-05,2]
[422940070,1779658503000,-204.02615694,8.217e-05,2]
[422940071,1779658557000,-300.0,8.216e-05,2]
[422940072,1779658610000,-300.0,8.216e-05,2]
[422940073,1779658663000,-300.0,8.216e-05,2]
[422940074,1779658717000,-500.0,8.216e-05,2]
[422940076,1779659049000,-500.0,8.213e-05,2]
[422940077,1779659103000,-212.19254237,8.212e-05,2]
[422940078,1779659136000,-500.0,8.212e-05,2]
[422940079,1779659136000,-500.0,8.212e-05,2]
[422940080,1779659136000,-126.92076471,8.212e-05,2]
[422940081,1779659156000,-373.07923529,8.212e-05,2]
[422940082,1779659210000,-500.0,8.211e-05,2]
[422940086,1779659231000,-500.0,8.211e-05,2]
[422940087,1779659231000,-184.51605131,8.211e-05,2]
[422940085,1779659231000,-500.0,8.211e-05,2]
[422940084,1779659231000,-500.0,8.211e-05,2]
[422940083,1779659231000,-543.8299486,8.211e-05,2]
[422940088,1779659252000,-315.48394869,8.211e-05,2]
[422940089,1779659252000,-194.98195067,8.211e-05,2]
[422940090,1779659263000,-305.01804933,8.211e-05,2]
[422940091,1779659263000,-357.77458795,8.211e-05,2]
[422940092,1779659316000,-142.22541205,8.211e-05,2]
[422940093,1779659370000,-500.0,8.21e-05,2]
[422940094,1779659423000,-500.0,8.209e-05,2]
[422941283,1779659445000,-500.0,8.21e-05,2]
[422941288,1779659445000,-500.0,8.21e-05,2]
[422941277,1779659445000,-500.0,8.21e-05,2]
[422941278,1779659445000,-500.0,8.21e-05,2]
[422941282,1779659445000,-500.0,8.21e-05,2]
[422941280,1779659445000,-500.0,8.21e-05,2]
[422941279,1779659445000,-500.0,8.21e-05,2]
[422941286,1779659445000,-500.0,8.21e-05,2]
[422941284,1779659445000,-500.0,8.21e-05,2]
[422941287,1779659445000,-500.0,8.21e-05,2]
[422941281,1779659445000,-500.0,8.21e-05,2]
[422941290,1779659445000,-500.0,8.21e-05,2]
[422941301,1779659445000,-603.69,8.219e-05,2]
[422941291,1779659445000,-500.0,8.21e-05,2]
[422941293,1779659445000,-500.0,8.219e-05,2]
[422941285,1779659445000,-500.0,8.21e-05,2]
[422941270,1779659445000,-500.0,8.21e-05,2]
[422941263,1779659445000,-500.0,8.21e-05,2]
[422941267,1779659445000,-500.0,8.21e-05,2]
[422941259,1779659445000,-500.0,8.21e-05,2]
[422941258,1779659445000,-221.0,8.209e-05,2]
[422941260,1779659445000,-500.0,8.21e-05,2]
[422941262,1779659445000,-500.0,8.21e-05,2]
[422941261,1779659445000,-500.0,8.21e-05,2]
[422941275,1779659445000,-500.0,8.21e-05,2]
[422941265,1779659445000,-500.0,8.21e-05,2]
[422941271,1779659445000,-500.0,8.21e-05,2]
[422941266,1779659445000,-500.0,8.21e-05,2]
[422941272,1779659445000,-500.0,8.21e-05,2]
[422941274,1779659445000,-219.53425108,8.21e-05,2]
[422941273,1779659445000,-500.0,8.21e-05,2]
[422941276,1779659445000,-500.0,8.21e-05,2]
[422941268,1779659445000,-500.0,8.21e-05,2]
[422941264,1779659445000,-500.0,8.21e-05,2]
[422941269,1779659445000,-507.32709837,8.21e-05,2]
[422941298,1779659445000,-500.0,8.219e-05,2]
[422941300,1779659445000,-500.0,8.219e-05,2]
[422941296,1779659445000,-500.0,8.219e-05,2]
[422941317,1779659445000,-207.85,8.493e-05,2]
[422941316,1779659445000,-500.0,8.493e-05,2]
[422941320,1779659445000,-601.51,8.493e-05,2]
[422941319,1779659445000,-235.41,8.493e-05,2]
[422941325,1779659445000,-864.0,0.00010141,2]
[422941323,1779659445000,-273.25304223,9.499e-05,7]
[422941324,1779659445000,-161.91725344,9.499e-05,7]
[422941321,1779659445000,-720.0,9.219e-05,2]
[422941332,1779659445000,-500.0,0.00012268,2]
[422941331,1779659445000,-500.0,0.00012268,2]
[422941327,1779659445000,-1000.0,0.00011156,2]
[422941329,1779659445000,-405.79335571,0.00012268,2]
[422941328,1779659445000,-204.0,0.00012213,2]
[422941330,1779659445000,-500.0,0.00012268,2]
[422941294,1779659445000,-500.0,8.219e-05,2]
[422941322,1779659445000,-428.84476436,9.499e-05,7]
[422941314,1779659445000,-203.35,8.493e-05,2]
[422941318,1779659445000,-290.1043137,8.493e-05,2]
[422941326,1779659445000,-177.0,0.00010213,2]
[422941315,1779659445000,-529.92603544,8.493e-05,2]
[422941299,1779659445000,-500.0,8.219e-05,2]
[422941292,1779659445000,-150.0,8.213e-05,2]
[422941295,1779659445000,-500.0,8.219e-05,2]
[422941297,1779659445000,-500.0,8.219e-05,2]
[422941302,1779659445000,-500.0,8.219e-05,2]
[422941307,1779659445000,-500.0,8.219e-05,2]
[422941313,1779659445000,-600.0,8.381e-05,2]
[422941306,1779659445000,-500.0,8.219e-05,2]
[422941308,1779659445000,-500.0,8.219e-05,2]
[422941304,1779659445000,-500.0,8.219e-05,2]
[422941311,1779659445000,-207.6722316,8.219e-05,2]
[422941312,1779659445000,-500.0,8.219e-05,2]
[422941309,1779659445000,-500.0,8.219e-05,2]
[422941310,1779659445000,-385.02567727,8.219e-05,2]
[422941303,1779659445000,-500.0,8.219e-05,2]
[422941305,1779659445000,-500.0,8.219e-05,2]
[422941353,1779659446000,-500.0,0.00012268,2]
[422941339,1779659446000,-500.0,0.00012268,2]
[422941349,1779659446000,-284.51026329,0.00012268,2]
[422941344,1779659446000,-500.0,0.00012268,2]
[422941352,1779659446000,-500.0,0.00012268,2]
[422941355,1779659446000,-450.0,0.00012268,2]
[422941341,1779659446000,-299.22501608,0.00012268,2]
[422941346,1779659446000,-500.0,0.00012268,2]
[422941340,1779659446000,-200.77498392,0.00012268,2]
[422941336,1779659446000,-500.0,0.00012268,2]
[422941354,1779659446000,-500.0,0.00012268,2]
[422941343,1779659446000,-500.0,0.00012268,2]
[422941335,1779659446000,-500.0,0.00012268,2]
[422941333,1779659446000,-500.0,0.00012268,2]
[422941337,1779659446000,-500.0,0.00012268,2]
[422941338,1779659446000,-192.15751898,0.00012268,2]
[422941334,1779659446000,-500.0,0.00012268,2]
[422941367,1779659446000,-45668.59020277,0.00013879,2]
[422941342,1779659446000,-500.0,0.00012268,2]
[422941356,1779659446000,-836.20804216,0.00012271,2]
[422941366,1779659446000,-1000.0,0.00013699,2]
[422941357,1779659446000,-163.79195784,0.00012271,2]
[422941378,1779659446000,-5236.92946167,0.00013879,2]
[422941380,1779659446000,-6831.42136694,0.00013879,2]
[422941376,1779659446000,-2747.83798997,0.00013879,2]
[422941377,1779659446000,-2932.51905695,0.00013879,2]
[422941379,1779659446000,-2125.78285023,0.00013879,2]
[422941381,1779659446000,-125603.86960686,0.00013879,2]
[422941373,1779659446000,-676.04006851,0.00013879,2]
[422941372,1779659446000,-6329.51878425,0.00013879,2]
[422941370,1779659446000,-114.94456535,0.00013879,2]
[422941371,1779659446000,-2718.19701079,0.00013879,2]
[422941375,1779659446000,-4296.67818282,0.00013879,2]
[422941365,1779659446000,-492.0,0.00013498,2]
[422941361,1779659446000,-2139.43949708,0.00012876,2]
[422941359,1779659446000,-1940.18050292,0.00012876,2]
[422941369,1779659446000,-440.41335325,0.00013879,2]
[422941382,1779659446000,-644.0,0.00013879,2]
[422941368,1779659446000,-29488.07781746,0.00013879,2]
[422941363,1779659446000,-1000.0,0.00013498,2]
[422941374,1779659446000,-382.205,0.00013879,2]
[422941358,1779659446000,-244.0,0.00012271,2]
[422941402,1779659447000,-2222.232,0.00013879,2]
[422941403,1779659616000,175.600567,4.38e-05,2]